Amount (�),Supplier,Service ,Division,Cost Centre,Cost Centre Code,Date Paid,Type,Transaction Reference,Dept
7056793.2,Nottinghamshire County Council,Collection Fund,Precepting Authorities,Notts Cc Precept & Ndr Share,5930,03/08/2018,Collection Fund Accounts,86197,Collection Fund
7056793.2,Nottinghamshire County Council,Collection Fund,Precepting Authorities,Notts Cc Precept & Ndr Share,5930,10/09/2018,Collection Fund Accounts,86198,Collection Fund
829009,Notts Police & Crime Commissioner,Collection Fund,Precepting Authorities,Notts Police Precept & Ndr,5932,03/08/2018,Collection Fund Accounts,84892,Collection Fund
829009,Notts Police & Crime Commissioner,Collection Fund,Precepting Authorities,Notts Police Precept & Ndr,5932,10/09/2018,Collection Fund Accounts,84893,Collection Fund
356501,Notts Fire And Rescue Service,Collection Fund,Precepting Authorities,Notts Fire Precept & Ndr,5933,03/08/2018,Collection Fund Accounts,84880,Collection Fund
356501,Notts Fire And Rescue Service,Collection Fund,Precepting Authorities,Notts Fire Precept & Ndr,5933,10/09/2018,Collection Fund Accounts,84881,Collection Fund
295921,Notts County Council,General Fund Summary,Cies,Taxn & Non Spec Grant Inc,1994,06/07/2018,Transfers Income,87326,General Fund Summary
190562.32,Fosse Medicare Ltd,Capital Expenditure,Transformation & Innovation,Cotgrave Masterplan,303,26/07/2018,Supplies & Services,88082,Capital Expenditure
163090.1,Thomas Bow Ltd,Capital Expenditure,Transformation & Innovation,Arena Car Park,336,10/08/2018,Third Party Payments,88576,Capital Expenditure
150059,Radcliffe On Trent Parish Council,Collection Fund,Parishes,Parish Councils,5934,26/09/2018,Collection Fund Accounts,84944,Collection Fund
148657.5,Ruddington Parish Council,Collection Fund,Parishes,Parish Councils,5934,26/09/2018,Collection Fund Accounts,84947,Collection Fund
143798.96,Newark & Sherwood District Council,Neighbourhoods,Waste & Fleet Management,Green Bin Collection,8402,23/08/2018,Income,88440,Neighbourhoods
134140,Bingham Town Council (Precept),Collection Fund,Parishes,Parish Councils,5934,26/09/2018,Collection Fund Accounts,84912,Collection Fund
133843.37,Streetwise Environmental Ltd,Neighbourhoods,Waste & Fleet Management,Streetwise Contract,8301,26/07/2018,Third Party Payments,87739,Neighbourhoods
132803,East Leake Parish Council,Collection Fund,Parishes,Parish Councils,5934,26/09/2018,Collection Fund Accounts,84923,Collection Fund
132117.23,Streetwise Environmental Ltd,Neighbourhoods,Waste & Fleet Management,Streetwise Contract,8301,23/08/2018,Third Party Payments,88641,Neighbourhoods
132117.23,Streetwise Environmental Ltd,Neighbourhoods,Waste & Fleet Management,Streetwise Contract,8301,28/09/2018,Third Party Payments,89851,Neighbourhoods
110607.16,Fosse Medicare Ltd,Capital Expenditure,Transformation & Innovation,Cotgrave Masterplan,303,09/08/2018,Supplies & Services,88457,Capital Expenditure
106618.52,Fosse Medicare Ltd,Capital Expenditure,Transformation & Innovation,Cotgrave Masterplan,303,14/09/2018,Supplies & Services,89324,Capital Expenditure
97417,Cotgrave Town Council,Collection Fund,Parishes,Parish Councils,5934,26/09/2018,Collection Fund Accounts,84876,Collection Fund
86695,Keyworth Parish Council,Collection Fund,Parishes,Parish Councils,5934,26/09/2018,Collection Fund Accounts,84933,Collection Fund
84106,South Kesteven D C,Communities,Building Control,Building Control - Fee Earning,1151,31/07/2018,Third Party Payments,88135,Communities
80000,Wilson Bowden Developments Ltd,Capital Expenditure,Transformation & Innovation,Cotgrave Masterplan,303,14/09/2018,Supplies & Services,89396,Capital Expenditure
65148.83,Thomas Bow Ltd,Capital Expenditure,Transformation & Innovation,Arena Car Park,336,11/07/2018,Third Party Payments,87588,Capital Expenditure
52217,Bytes Software Services Ltd,Transformation,Ict,It Rechargeable Costs,4722,18/07/2018,Supplies & Services,87123,Transformation
48891,Integrity Communications Ltd,Capital Expenditure,Transformation & Innovation,Technical Infrastructure,603,17/08/2018,Supplies & Services,87752,Capital Expenditure
45417.5,Cropwell Bishop Parish Council,Collection Fund,Parishes,Parish Councils,5934,26/09/2018,Collection Fund Accounts,84918,Collection Fund
41769.33,Nottinghamshire County Council,Neighbourhoods,Leisure Contracts & Car Parks,East Leake Leisure Centre,1700,28/09/2018,Third Party Payments,89835,Neighbourhoods
41769.33,Nottinghamshire County Council,Neighbourhoods,Leisure Contracts & Car Parks,East Leake Leisure Centre,1700,28/09/2018,Third Party Payments,89836,Neighbourhoods
41181.95,Nottinghamshire County Council,Neighbourhoods,Leisure Contracts & Car Parks,East Leake Leisure Centre,1700,28/09/2018,Third Party Payments,89833,Neighbourhoods
41181.95,Nottinghamshire County Council,Neighbourhoods,Leisure Contracts & Car Parks,East Leake Leisure Centre,1700,28/09/2018,Third Party Payments,89834,Neighbourhoods
40991.71,Northstone (Ni) Limited,Capital Expenditure,Neighbourhoods,Arena Development,415,26/07/2018,Third Party Payments,87589,Capital Expenditure
40614.74,Nottinghamshire County Council,Neighbourhoods,Leisure Contracts & Car Parks,East Leake Leisure Centre,1700,28/09/2018,Third Party Payments,89832,Neighbourhoods
36401,A&S Enterprises Limited,Capital Expenditure,Transformation & Innovation,Cotgrave Masterplan,303,11/07/2018,Supplies & Services,87577,Capital Expenditure
27975,Tollerton Parish Council,Collection Fund,Parishes,Parish Councils,5934,26/09/2018,Collection Fund Accounts,84956,Collection Fund
25900,Nottinghamshire County Council,Transformation,Emergency Planning,Emergency Planning,1041,11/07/2018,Employee Related Expenditure,87438,Transformation
24525.31,Certas Energy T/A Pace Fuelcare,Neighbourhoods,Waste & Fleet Management,Fleet,8600,19/09/2018,Transport Related Expenditure,89431,Neighbourhoods
24400,Via East Midlands,Capital Expenditure,Transformation & Innovation,Arena Car Park,336,24/07/2018,Third Party Payments,87733,Capital Expenditure
24037.84,Certas Energy T/A Pace Fuelcare,Neighbourhoods,Waste & Fleet Management,Fleet,8600,31/08/2018,Transport Related Expenditure,88942,Neighbourhoods
23701.5,Certas Energy T/A Pace Fuelcare,Neighbourhoods,Waste & Fleet Management,Fleet,8600,09/07/2018,Transport Related Expenditure,87461,Neighbourhoods
22988.02,Certas Energy T/A Pace Fuelcare,Neighbourhoods,Waste & Fleet Management,Fleet,8600,09/08/2018,Transport Related Expenditure,88293,Neighbourhoods
21590.84,Nottingham City Council,Neighbourhoods,Waste & Fleet Management,Garage,8700,09/08/2018,Transport Related Expenditure,88321,Neighbourhoods
20796.28,Certas Energy T/A Pace Fuelcare,Neighbourhoods,Waste & Fleet Management,Fleet,8600,24/07/2018,Transport Related Expenditure,87869,Neighbourhoods
19201.23,Bruton Knowles,Capital Income,Capital Receipts,"Sharphill, Edwalton (Wells Lan",9081,06/07/2018,Supplies & Services,85871,Capital Income
19144,East Bridgford Parish Council,Collection Fund,Parishes,Parish Councils,5934,26/09/2018,Collection Fund Accounts,84921,Collection Fund
18950,Holme Pierrepont & Gamston Parish Council,Collection Fund,Parishes,Parish Councils,5934,26/09/2018,Collection Fund Accounts,84931,Collection Fund
18699,Gotham Parish Council,Collection Fund,Parishes,Parish Councils,5934,26/09/2018,Collection Fund Accounts,84926,Collection Fund
18500,Rural Community Action Notts,Communities,Community Development,Community Development,1581,24/07/2018,Supplies & Services,87864,Communities
18450,Gleeds Advisory Ltd,Transformation,Economic Regeneration,Economic Development,1887,26/07/2018,Supplies & Services,86835,Transformation
18250,Civica Uk Ltd,Transformation,Ict,It Rechargeable Costs,4722,31/08/2018,Supplies & Services,88877,Transformation
18222.5,J Tomlinson Ltd,Capital Expenditure,Transformation & Innovation,Cotgrave Employment Land,371,21/09/2018,Supplies & Services,89555,Capital Expenditure
17738.5,Langar Cum Barnstone Parish Council,Collection Fund,Parishes,Parish Councils,5934,26/09/2018,Collection Fund Accounts,84937,Collection Fund
16094.73,Bruton Knowles,Capital Income,Capital Receipts,"Sharphill, Edwalton (Wells Lan",9081,06/07/2018,Supplies & Services,85872,Capital Income
15878.36,Nottingham City Council,Neighbourhoods,Waste & Fleet Management,Garage,8700,04/07/2018,Transport Related Expenditure,86938,Neighbourhoods
15878.36,Nottingham City Council,Neighbourhoods,Waste & Fleet Management,Garage,8700,04/07/2018,Transport Related Expenditure,87212,Neighbourhoods
15750,Nottinghamshire Wildlife Trust,Communities,Community Development,Environmental Promotion,1590,23/08/2018,Supplies & Services,88611,Communities
14000,Streetwise Environmental Ltd,Transformation,Property Services,Land Holdings,1884,03/08/2018,Income,86629,Transformation
13739.8,Allan Joyce Architects Ltd,Capital Expenditure,Transformation & Innovation,Cotgrave Masterplan,303,10/08/2018,Supplies & Services,88141,Capital Expenditure
12900.5,Sutton Bonington Parish Counc,Collection Fund,Parishes,Parish Councils,5934,26/09/2018,Collection Fund Accounts,84953,Collection Fund
12750,Ropewalk Chambers,Communities,Planning & Growth,Development Control,1161,09/08/2018,Supplies & Services,88472,Communities
12717.45,Print Image Facilities Llp,Finance & Corporate Services,Democratic Services,Electoral Registration,1026,09/08/2018,Supplies & Services,87957,Finance & Corporate Services
12182,Trent Valley Plumbing & Build,Capital Expenditure,Neighbourhoods,Disabled Facilities Grant,332,21/09/2018,Supplies & Services,89556,Capital Expenditure
11500,Arlingclose Ltd,Finance & Corporate Services,Financial Services,Interest Receipts,1034,18/07/2018,Supplies & Services,87317,Finance & Corporate Services
10489.67,Certas Energy T/A Pace Fuelcare,Neighbourhoods,Waste & Fleet Management,Fleet,8600,09/08/2018,Transport Related Expenditure,88443,Neighbourhoods
10400,Tunstall Telecom,Neighbourhoods,Strategic Housing,Home Alarms,1137,28/09/2018,Supplies & Services,89338,Neighbourhoods
10333.02,Nottingham County Council,Liabilities,Long Term Liabilities,Belway Homes Pasture Ln Rudd,6750,09/08/2018,Balance Sheet Exp In The Year,88423,Liabilities
10000,Learning Pool Ltd,Transformation,Human Resources,Corporate Training,4893,10/09/2018,Supplies & Services,88954,Transformation
9624,Trent Valley Plumbing & Build,Capital Expenditure,Neighbourhoods,Disabled Facilities Grant,332,21/09/2018,Supplies & Services,89552,Capital Expenditure
9411,Trent Valley Plumbing & Build,Capital Expenditure,Neighbourhoods,Disabled Facilities Grant,332,18/07/2018,Supplies & Services,87580,Capital Expenditure
9218,Streetwise Environmental Ltd,Transformation,Property Services,Open Spaces & Footpaths,1290,17/08/2018,Premises Related Expenditure,88392,Transformation
8628,Integrity Communications Ltd,Transformation,Ict,It Rechargeable Costs,4722,17/08/2018,Supplies & Services,87752,Transformation
8333.33,Ngi Uk Limited,Transformation,Economic Regeneration,Economic Development,1887,10/09/2018,Supplies & Services,89201,Transformation
8121,Fusemail Uk Ltd,Transformation,Ict,It Rechargeable Costs,4722,03/08/2018,Supplies & Services,87858,Transformation
7560,Rsm,Finance & Corporate Services,Financial Services,Internal Audit,4708,07/09/2018,Supplies & Services,89052,Finance & Corporate Services
7391,A R Signs Ltd,Finance & Corporate Services,"Performance, Repn & Comms",Performance And Reputation,4710,04/07/2018,Supplies & Services,86829,Finance & Corporate Services
7130,Easibathe Limited,Capital Expenditure,Neighbourhoods,Disabled Facilities Grant,332,21/09/2018,Supplies & Services,89551,Capital Expenditure
7042,A S Response Ltd,Capital Expenditure,Neighbourhoods,Disabled Facilities Grant,332,31/07/2018,Supplies & Services,88192,Capital Expenditure
7000,Exeid,Capital Expenditure,Transformation & Innovation,Bridgford Hall Refurbishment,382,05/07/2018,Supplies & Services,72842,Capital Expenditure
6900,Modern Mindset Ltd,Capital Expenditure,Transformation & Innovation,Applications/Apps,605,31/07/2018,Supplies & Services,86402,Capital Expenditure
6840,Apw (Nottm) Ltd,Capital Expenditure,Neighbourhoods,Disabled Facilities Grant,332,09/08/2018,Supplies & Services,88467,Capital Expenditure
6837.38,Friary Drop In,Rechargeable Accounts,Suspense Accounts,Mayor'S Charity 2017/18 Cooper,5218,11/07/2018,Transfers Income,87205,Rechargeable Accounts
6771,T&S Heating Ltd,Capital Expenditure,Neighbourhoods,Disabled Facilities Grant,332,21/09/2018,Supplies & Services,89600,Capital Expenditure
6692.49,South Kesteven D C,Communities,Building Control,Building Control - Fee Earning,1151,21/08/2018,Third Party Payments,88798,Communities
6673.32,Service Level Management Ltd,Transformation,Bsu,Central Mail,4871,28/09/2018,Supplies & Services,89316,Transformation
6650,Upgrade Options Limited,Capital Expenditure,Transformation & Innovation,Ict Replacement Programme,592,06/07/2018,Supplies & Services,87074,Capital Expenditure
6650,Upgrade Options Limited,Capital Expenditure,Transformation & Innovation,Ict Replacement Programme,592,10/09/2018,Supplies & Services,88962,Capital Expenditure
6491.75,Thomson Reuters,Finance & Corporate Services,Legal,Legal Services,4701,14/09/2018,Supplies & Services,88285,Finance & Corporate Services
6300.45,Tunstall Response Ltd,Neighbourhoods,Strategic Housing,Home Alarms,1137,14/09/2018,Supplies & Services,88697,Neighbourhoods
5985,Lodge Tyre Co.Ltd,Neighbourhoods,Waste & Fleet Management,Waste Collection,8403,11/07/2018,Transport Related Expenditure,87543,Neighbourhoods
5949.42,Broxtowe Youth Homelessness,Neighbourhoods,Strategic Housing,Homelessness Prevention,1147,06/07/2018,Supplies & Services,87050,Neighbourhoods
5934.04,Heb Chartered Surveyors,Capital Income,Capital Receipts,Moorbridge Road,944,31/07/2018,Supplies & Services,87666,Capital Income
5741.5,Lodge Tyre Co.Ltd,Neighbourhoods,Waste & Fleet Management,Waste Collection,8403,21/09/2018,Transport Related Expenditure,89651,Neighbourhoods
5719.2,Glasdon Uk Limited,Neighbourhoods,Waste & Fleet Management,Glass Recycling & Bring Sites,8407,09/07/2018,Supplies & Services,87073,Neighbourhoods
5650,Dta Electrical,Capital Expenditure,Transformation & Innovation,Cotgrave Masterplan,303,19/09/2018,Supplies & Services,89525,Capital Expenditure
5622.25,A&S Enterprises Limited,Capital Expenditure,Transformation & Innovation,Cotgrave Masterplan,303,14/09/2018,Supplies & Services,89325,Capital Expenditure
5543.65,Via East Midlands,Communities,Local Development Framework,Land Charges,1033,31/07/2018,Supplies & Services,88072,Communities
5494.91,Aag It Services,Finance & Corporate Services,Financial Services,Suspense No Code,5224,18/07/2018,Returned Creditors,87417,Finance & Corporate Services
5488,Access Doors,Communities,Community Development,Gresham,8950,17/08/2018,Supplies & Services,88384,Communities
5455,Trent Valley Plumbing & Build,Capital Expenditure,Neighbourhoods,Disabled Facilities Grant,332,28/09/2018,Supplies & Services,89803,Capital Expenditure
5420,Trent Valley Plumbing & Build,Capital Expenditure,Neighbourhoods,Disabled Facilities Grant,332,14/09/2018,Supplies & Services,89035,Capital Expenditure
5260.61,Parkwood Leisure Ltd,Neighbourhoods,Leisure Contracts & Car Parks,Leisure Management Contract,1795,11/07/2018,Third Party Payments,87111,Neighbourhoods
5260.61,Parkwood Leisure Ltd,Neighbourhoods,Leisure Contracts & Car Parks,Leisure Management Contract,1795,29/08/2018,Third Party Payments,88920,Neighbourhoods
5257.98,Print Image Network Ltd,Finance & Corporate Services,Democratic Services,Electoral Registration,1026,31/08/2018,Supplies & Services,88774,Finance & Corporate Services
5217.94,The South Wolds Academy And Sixth Form,Neighbourhoods,Leisure Contracts & Car Parks,Leisure Management Contract,1795,19/09/2018,Premises Related Expenditure,89215,Neighbourhoods
5210,Trent Valley Plumbing & Build,Capital Expenditure,Neighbourhoods,Disabled Facilities Grant,332,14/09/2018,Supplies & Services,89034,Capital Expenditure
5200,Lodge Tyre Co.Ltd,Neighbourhoods,Waste & Fleet Management,Waste Collection,8403,09/08/2018,Transport Related Expenditure,88402,Neighbourhoods
5000,A&S Greenway Limited,Transformation,Economic Regeneration,Economic Development,1887,26/07/2018,Supplies & Services,87981,Transformation
5000,B.M.B Builders & Plumbers,Capital Expenditure,Neighbourhoods,Disabled Facilities Grant,332,23/08/2018,Supplies & Services,88822,Capital Expenditure
5000,Ninesharp Ltd,Transformation,Ict,It,4703,31/08/2018,Employee Related Expenditure,88654,Transformation
4818.53,Frontline Recruitment Ltd,Neighbourhoods,Waste & Fleet Management,Waste Collection,8403,23/08/2018,Employee Related Expenditure,88769,Neighbourhoods
4767.63,Royal Mail Group Ltd,Transformation,Bsu,Central Mail,4871,31/08/2018,Supplies & Services,88702,Transformation
4733,Patco Events Ltd,Communities,Community Development,Arts,1550,24/07/2018,Supplies & Services,87524,Communities
4725,Rsm,Finance & Corporate Services,Financial Services,Internal Audit,4708,31/07/2018,Supplies & Services,88139,Finance & Corporate Services
4668.32,Hill Bros (Nottingham) Ltd,Capital Expenditure,Neighbourhoods,Disabled Facilities Grant,332,19/09/2018,Supplies & Services,89424,Capital Expenditure
4616,Trent Valley Plumbing & Build,Capital Expenditure,Neighbourhoods,Disabled Facilities Grant,332,26/09/2018,Supplies & Services,89684,Capital Expenditure
4518.35,The National Leaflet Company,Finance & Corporate Services,"Performance, Repn & Comms",Performance And Reputation,4710,19/07/2018,Supplies & Services,87860,Finance & Corporate Services
4500,Rural Community Action Notts,Communities,Community Development,Parks & Playing Fields-Gen,8910,18/07/2018,Supplies & Services,86034,Communities
4461.6,Cromwell Polythene Limited,Neighbourhoods,Waste & Fleet Management,Waste Collection,8403,28/09/2018,Supplies & Services,89822,Neighbourhoods
4408.29,Local Partnerships,Transformation,Property Services,Land Holdings,1884,21/09/2018,Supplies & Services,88882,Transformation
4316,Obam Lift Services Ltd,Capital Expenditure,Neighbourhoods,Disabled Facilities Grant,332,29/08/2018,Supplies & Services,88772,Capital Expenditure
4294.42,Maltby & Company,Capital Expenditure,Transformation & Innovation,Bridgford Hall Refurbishment,382,21/08/2018,Third Party Payments,88804,Capital Expenditure
4277,Street Design Limited,Communities,Community Development,Environmental Promotion,1590,28/09/2018,Supplies & Services,89175,Communities
4225,Cilexlaw School,Finance & Corporate Services,Legal,Legal Services,4701,24/07/2018,Employee Related Expenditure,87781,Finance & Corporate Services
4138.33,Frontline Recruitment Ltd,Neighbourhoods,Waste & Fleet Management,Waste Collection,8403,09/08/2018,Employee Related Expenditure,88283,Neighbourhoods
4132.17,Terminal Four,Transformation,Ict,It Rechargeable Costs,4722,14/09/2018,Supplies & Services,89033,Transformation
4111.02,Frontline Recruitment Ltd,Neighbourhoods,Waste & Fleet Management,Waste Collection,8403,11/07/2018,Employee Related Expenditure,87536,Neighbourhoods
4095,Obam Lift Services Ltd,Capital Expenditure,Neighbourhoods,Disabled Facilities Grant,332,24/07/2018,Supplies & Services,87949,Capital Expenditure
4087.71,Print Image Facilities Llp,Finance & Corporate Services,Democratic Services,Electoral Registration,1026,19/09/2018,Supplies & Services,88792,Finance & Corporate Services
4071.3,Frontline Recruitment Ltd,Neighbourhoods,Waste & Fleet Management,Waste Collection,8403,18/07/2018,Employee Related Expenditure,87104,Neighbourhoods
4000,A R Signs Ltd,Capital Expenditure,Transformation & Innovation,Cotgrave Employment Land,371,14/09/2018,Supplies & Services,89049,Capital Expenditure
4000,Obam Lift Services Ltd,Capital Expenditure,Neighbourhoods,Disabled Facilities Grant,332,09/08/2018,Supplies & Services,88468,Capital Expenditure
3974,Water Centres Ltd,Capital Expenditure,Neighbourhoods,Disabled Facilities Grant,332,06/07/2018,Supplies & Services,87421,Capital Expenditure
3900,Institute Of Directors,Transformation,Human Resources,Corporate Training,4893,18/07/2018,Employee Related Expenditure,87667,Transformation
3850,Commercial Surface Solutions Ltd,Neighbourhoods,Leisure Contracts & Car Parks,Car Parks,1900,04/07/2018,Premises Related Expenditure,87234,Neighbourhoods
3765,Apw (Nottm) Ltd,Capital Expenditure,Neighbourhoods,Disabled Facilities Grant,332,31/07/2018,Supplies & Services,88148,Capital Expenditure
3759.98,Parkwood Community Leisure,Transformation,Property Services,Arena Civic Centre,4718,19/07/2018,Premises Related Expenditure,87154,Transformation
3750,Gfirst Lep Cic,Transformation,Economic Regeneration,Economic Development,1887,09/08/2018,Supplies & Services,88389,Transformation
3730,Apw (Nottm) Ltd,Capital Expenditure,Neighbourhoods,Disabled Facilities Grant,332,09/08/2018,Supplies & Services,88466,Capital Expenditure
3700,Apw (Nottm) Ltd,Capital Expenditure,Neighbourhoods,Disabled Facilities Grant,332,09/08/2018,Supplies & Services,88417,Capital Expenditure
3700,Apw (Nottm) Ltd,Capital Expenditure,Neighbourhoods,Disabled Facilities Grant,332,31/08/2018,Supplies & Services,88934,Capital Expenditure
3689,Frontline Recruitment Ltd,Neighbourhoods,Waste & Fleet Management,Waste Collection,8403,14/09/2018,Employee Related Expenditure,89111,Neighbourhoods
3685.93,Hill Bros (Nottingham) Ltd,Capital Expenditure,Neighbourhoods,Disabled Facilities Grant,332,19/09/2018,Supplies & Services,89425,Capital Expenditure
3664,Trent Valley Plumbing & Build,Capital Expenditure,Neighbourhoods,Disabled Facilities Grant,332,19/09/2018,Supplies & Services,89428,Capital Expenditure
3594.66,Frontline Recruitment Ltd,Neighbourhoods,Waste & Fleet Management,Waste Collection,8403,17/08/2018,Employee Related Expenditure,88627,Neighbourhoods
3545,The Rock Church,Capital Expenditure,Communties,Capital Grant Funding,651,21/08/2018,Supplies & Services,88655,Capital Expenditure
3530,Apw (Nottm) Ltd,Capital Expenditure,Neighbourhoods,Disabled Facilities Grant,332,21/09/2018,Supplies & Services,89554,Capital Expenditure
3505,Vinshire Plumbing & Heating Limited,Capital Expenditure,Communties,Warm Homes On Prescription,337,21/09/2018,Supplies & Services,89206,Capital Expenditure
3500,Improvement & Development Agency,Finance & Corporate Services,Emt & Transformation,Executive Management Team,4721,23/08/2018,Employee Related Expenditure,88619,Finance & Corporate Services
3481.52,Broxtowe Borough Council,Neighbourhoods,Leisure Contracts & Car Parks,Car Parks,1900,31/07/2018,Supplies & Services,87952,Neighbourhoods
3465,Rsm,Finance & Corporate Services,Financial Services,Internal Audit,4708,04/07/2018,Supplies & Services,87222,Finance & Corporate Services
3405,Cadline Limited,Transformation,Ict,It Rechargeable Costs,4722,10/08/2018,Supplies & Services,88431,Transformation
3396.06,Frontline Recruitment Ltd,Neighbourhoods,Waste & Fleet Management,Waste Collection,8403,31/07/2018,Employee Related Expenditure,88149,Neighbourhoods
3350,Nottinghamshire County Council,Communities,Local Development Framework,Land Charges,1033,19/09/2018,Income,89128,Communities
3285.87,Trent Valley Plumbing & Build,Capital Expenditure,Neighbourhoods,Disabled Facilities Grant,332,24/07/2018,Supplies & Services,87948,Capital Expenditure
3264.49,Frontline Recruitment Ltd,Neighbourhoods,Waste & Fleet Management,Waste Collection,8403,18/07/2018,Employee Related Expenditure,87761,Neighbourhoods
3250,Leonard Cheshire Disability,Transformation,Human Resources,Human Resources,4709,17/08/2018,Employee Related Expenditure,88329,Transformation
3250,Pinders,Transformation,Property Services,Land Holdings,1884,04/07/2018,Supplies & Services,87201,Transformation
3244,Water Centres Ltd,Capital Expenditure,Neighbourhoods,Disabled Facilities Grant,332,26/07/2018,Supplies & Services,88053,Capital Expenditure
3240,A R Signs Ltd,Capital Expenditure,Transformation & Innovation,Cotgrave Masterplan,303,14/09/2018,Supplies & Services,89044,Capital Expenditure
3240,A R Signs Ltd,Capital Expenditure,Transformation & Innovation,Cotgrave Masterplan,303,14/09/2018,Supplies & Services,89045,Capital Expenditure
3240,A R Signs Ltd,Capital Expenditure,Transformation & Innovation,Cotgrave Masterplan,303,14/09/2018,Supplies & Services,89046,Capital Expenditure
3240,A R Signs Ltd,Capital Expenditure,Transformation & Innovation,Cotgrave Masterplan,303,14/09/2018,Supplies & Services,89047,Capital Expenditure
3240,A R Signs Ltd,Capital Expenditure,Transformation & Innovation,Cotgrave Masterplan,303,14/09/2018,Supplies & Services,89048,Capital Expenditure
3240,A R Signs Ltd,Capital Expenditure,Transformation & Innovation,Cotgrave Masterplan,303,14/09/2018,Supplies & Services,89050,Capital Expenditure
3203.74,Penham Excel Ltd,Collection Fund,Council Tax Payers,Council Tax Cash Collected,5909,31/08/2018,Collection Fund Accounts,88686,Collection Fund
3194.28,Parkwood Community Leisure,Transformation,Property Services,Arena Civic Centre,4718,09/08/2018,Premises Related Expenditure,87968,Transformation
3150,Rsm,Finance & Corporate Services,Financial Services,Internal Audit,4708,28/09/2018,Supplies & Services,89757,Finance & Corporate Services
3135,Cds Services,Capital Expenditure,Neighbourhoods,Disabled Facilities Grant,332,06/07/2018,Supplies & Services,87344,Capital Expenditure
3122.99,Frontline Recruitment Ltd,Neighbourhoods,Waste & Fleet Management,Waste Collection,8403,03/08/2018,Employee Related Expenditure,87863,Neighbourhoods
3095.68,Frontline Recruitment Ltd,Neighbourhoods,Waste & Fleet Management,Waste Collection,8403,31/08/2018,Employee Related Expenditure,88935,Neighbourhoods
3083,Trent Valley Plumbing & Build,Capital Expenditure,Neighbourhoods,Disabled Facilities Grant,332,19/09/2018,Supplies & Services,89426,Capital Expenditure
3050,Derby Legal Services Ltd,Communities,Community Development,Parks & Playing Fields-Gen,8910,23/08/2018,Supplies & Services,88635,Communities
3000.08,Water Plus,Transformation,Property Services,Parish Run Pub Conveniences,1072,18/07/2018,Premises Related Expenditure,86472,Transformation
3000,B.M.B Builders & Plumbers,Capital Expenditure,Communties,West Park Sports Pav - Toilets,322,26/09/2018,Supplies & Services,89427,Capital Expenditure
3000,B.M.B Builders & Plumbers,Capital Expenditure,Neighbourhoods,Disabled Facilities Grant,332,31/07/2018,Supplies & Services,87783,Capital Expenditure
3000,Focusonbanking,Finance & Corporate Services,Financial Services,Suspense No Code,5224,17/08/2018,Returned Creditors,88447,Finance & Corporate Services
3000,Sarah Mcnicol Coaching,Transformation,Human Resources,Corporate Training,4893,11/07/2018,Employee Related Expenditure,87306,Transformation
2994,Water Centres Ltd,Capital Expenditure,Neighbourhoods,Disabled Facilities Grant,332,31/07/2018,Supplies & Services,88190,Capital Expenditure
2957.25,Ghm Planning Limited,Communities,Planning & Growth,Development Control,1161,17/08/2018,Employee Related Expenditure,88301,Communities
2900,The Information Commissioner,Finance & Corporate Services,Legal,Legal Services,4701,17/07/2018,Supplies & Services,87542,Finance & Corporate Services
2872.25,Frontline Recruitment Ltd,Neighbourhoods,Waste & Fleet Management,Waste Collection,8403,11/07/2018,Employee Related Expenditure,87347,Neighbourhoods
2842.31,Park Avenue,Communities,Planning & Growth,Development Control,1161,28/09/2018,Employee Related Expenditure,89644,Communities
2825,Cipfa Business Limited,Finance & Corporate Services,Financial Services,Financial Services,4705,04/07/2018,Supplies & Services,87335,Finance & Corporate Services
2814,Hodson Specialist Contractors,Neighbourhoods,Leisure Contracts & Car Parks,Leisure Management Contract,1795,19/07/2018,Premises Related Expenditure,87304,Neighbourhoods
2808,D.Tec International Ltd,Transformation,Human Resources,Human Resources,4709,26/09/2018,Supplies & Services,89214,Transformation
2764.77,C&M Builders,Capital Expenditure,Neighbourhoods,Disabled Facilities Grant,332,21/09/2018,Supplies & Services,89601,Capital Expenditure
2759.2,Maltby & Company,Neighbourhoods,Strategic Housing,Hostel Hound Lodge,1111,24/07/2018,Supplies & Services,87745,Neighbourhoods
2746.45,Ghm Planning Limited,Communities,Planning & Growth,Development Control,1161,17/08/2018,Employee Related Expenditure,88302,Communities
2743.2,Ghm Planning Limited,Communities,Planning & Growth,Development Control,1161,26/07/2018,Employee Related Expenditure,87592,Communities
2668.55,Severn Trent Water,Neighbourhoods,Waste & Fleet Management,Depot,4001,19/09/2018,Premises Related Expenditure,89386,Neighbourhoods
2646.27,Gedling Borough Council,Finance & Corporate Services,Democratic Services,Borough Council Elections,1021,19/09/2018,Employee Related Expenditure,89603,Finance & Corporate Services
2637.3,Opus International Consultants (Uk) Ltd,Capital Expenditure,Transformation & Innovation,New Depot,312,11/07/2018,Supplies & Services,86894,Capital Expenditure
2600,Origin Surveys Limited,Transformation,Property Services,Land Holdings,1884,04/07/2018,Supplies & Services,87069,Transformation
2500,Focusonbanking,Finance & Corporate Services,Financial Services,Corporate Management,4895,09/07/2018,Supplies & Services,87096,Finance & Corporate Services
2497.67,Majestic Trees,Transformation,Economic Regeneration,West Bridgford Town Centre,1875,07/09/2018,Supplies & Services,89131,Transformation
2398.79,Broxtowe Borough Council,Neighbourhoods,Leisure Contracts & Car Parks,Car Parks,1900,21/08/2018,Supplies & Services,87951,Neighbourhoods
2384.05,Thomson Reuters,Finance & Corporate Services,Legal,Legal Services,4701,21/08/2018,Supplies & Services,87314,Finance & Corporate Services
2358.25,Fisher Hargreaves Proctor,Capital Expenditure,Transformation & Innovation,Cotgrave Masterplan,303,10/09/2018,Supplies & Services,89017,Capital Expenditure
2351.65,Carlton Design & Fabrication,Capital Expenditure,Neighbourhoods,Disabled Facilities Grant,332,09/08/2018,Supplies & Services,88469,Capital Expenditure
2330,Gedling Borough Council,Transformation,Ict,It Rechargeable Costs,4722,10/08/2018,Supplies & Services,88146,Transformation
2306.24,Frontline Recruitment Ltd,Neighbourhoods,Waste & Fleet Management,Waste Collection,8403,14/09/2018,Employee Related Expenditure,89330,Neighbourhoods
2297.6,British Gas Business,Neighbourhoods,Leisure Contracts & Car Parks,Car Parks,1900,07/09/2018,Premises Related Expenditure,88600,Neighbourhoods
2279.5,Carlton Design & Fabrication,Capital Expenditure,Neighbourhoods,Disabled Facilities Grant,332,31/07/2018,Supplies & Services,88054,Capital Expenditure
2250,Browne Jacobson,Capital Income,Capital Receipts,"Sharphill, Edwalton (Wells Lan",9081,04/07/2018,Supplies & Services,86920,Capital Income
2250,Penna Plc,Finance & Corporate Services,Legal,Legal Services,4701,04/07/2018,Employee Related Expenditure,86751,Finance & Corporate Services
2232.03,Water Plus,Neighbourhoods,Leisure Contracts & Car Parks,Leisure Management Contract,1795,09/08/2018,Premises Related Expenditure,87676,Neighbourhoods
2231.67,Halfords Ltd,Assets,Current Assets,Cycle To Work Scheme,6228,31/07/2018,Balance Sheet Advances,86403,Assets
2214.87,Water Plus,Neighbourhoods,Leisure Contracts & Car Parks,Leisure Management Contract,1795,09/08/2018,Premises Related Expenditure,88061,Neighbourhoods
2150,Browne Jacobson,Communities,Planning & Growth,Development Control,1161,29/08/2018,Supplies & Services,88606,Communities
2116.8,Zip Heaters (Uk) Ltd,Transformation,Property Services,Arena Civic Centre,4718,28/09/2018,Premises Related Expenditure,89384,Transformation
2105.86,Hill Bros (Nottingham) Ltd,Capital Expenditure,Neighbourhoods,Disabled Facilities Grant,332,31/07/2018,Supplies & Services,88189,Capital Expenditure
2100.5,Havas People Ltd,Communities,Planning & Growth,Development Control,1161,09/08/2018,Employee Related Expenditure,88166,Communities
2048.43,Print Image Network Ltd,Finance & Corporate Services,Democratic Services,Electoral Registration,1026,19/09/2018,Supplies & Services,89233,Finance & Corporate Services
2031.84,Royal Mail Group Ltd,Transformation,Bsu,Central Mail,4871,06/07/2018,Supplies & Services,87102,Transformation
2025,Badenoch & Clark,Finance & Corporate Services,Financial Services,Financial Services,4705,18/07/2018,Employee Related Expenditure,87412,Finance & Corporate Services
2025,Badenoch & Clark,Finance & Corporate Services,Financial Services,Financial Services,4705,09/08/2018,Employee Related Expenditure,88180,Finance & Corporate Services
2025,Badenoch & Clark,Finance & Corporate Services,Financial Services,Financial Services,4705,29/08/2018,Employee Related Expenditure,88560,Finance & Corporate Services
2025,Badenoch & Clark,Finance & Corporate Services,Financial Services,Financial Services,4705,29/08/2018,Employee Related Expenditure,88561,Finance & Corporate Services
2025,Badenoch & Clark,Finance & Corporate Services,Financial Services,Financial Services,4705,29/08/2018,Employee Related Expenditure,88563,Finance & Corporate Services
2000,Bentley Project Management,Capital Expenditure,Transformation & Innovation,Cotgrave Masterplan,303,18/07/2018,Supplies & Services,87508,Capital Expenditure
2000,Focusonbanking,Finance & Corporate Services,Financial Services,Corporate Management,4895,26/09/2018,Supplies & Services,89364,Finance & Corporate Services
2000,Ropewalk Chambers,Communities,Planning & Growth,Development Control,1161,24/07/2018,Supplies & Services,87159,Communities
1985.53,Royal Mail Group Ltd,Transformation,Bsu,Central Mail,4871,11/07/2018,Supplies & Services,87243,Transformation
1984,Mk Door Systems Ltd T/A Style Midlands,Transformation,Property Services,Arena Civic Centre,4718,31/08/2018,Premises Related Expenditure,88928,Transformation
1969.12,Water Plus,Transformation,Property Services,Parish Run Pub Conveniences,1072,09/08/2018,Premises Related Expenditure,86438,Transformation
1947,Clearway (Midlands) Ltd,Neighbourhoods,Leisure Contracts & Car Parks,Car Parks,1900,19/07/2018,Supplies & Services,87338,Neighbourhoods
1940.87,The South Wolds Academy And Sixth Form,Neighbourhoods,Leisure Contracts & Car Parks,Leisure Management Contract,1795,18/07/2018,Premises Related Expenditure,84383,Neighbourhoods
1930.2,Nsl Limited,Neighbourhoods,Leisure Contracts & Car Parks,Car Parks,1900,21/09/2018,Supplies & Services,89118,Neighbourhoods
1915.34,Nsl Limited,Neighbourhoods,Leisure Contracts & Car Parks,Car Parks,1900,17/08/2018,Supplies & Services,88309,Neighbourhoods
1910.78,Print Image Network Ltd,Finance & Corporate Services,Democratic Services,Electoral Registration,1026,19/09/2018,Supplies & Services,89322,Finance & Corporate Services
1907.36,Broxtowe Borough Council,Neighbourhoods,Leisure Contracts & Car Parks,Car Parks,1900,31/07/2018,Supplies & Services,87953,Neighbourhoods
1905,Allan Joyce Architects Ltd,Capital Expenditure,Transformation & Innovation,Cotgrave Masterplan,303,17/08/2018,Supplies & Services,88138,Capital Expenditure
1900,Idox Software Limited,Transformation,Ict,It Rechargeable Costs,4722,06/07/2018,Supplies & Services,86944,Transformation
1890.69,Nsl Limited,Neighbourhoods,Leisure Contracts & Car Parks,Car Parks,1900,18/07/2018,Supplies & Services,87343,Neighbourhoods
1871,Browne Jacobson,Capital Income,Capital Receipts,"Sharphill, Edwalton (Wells Lan",9081,06/07/2018,Supplies & Services,86341,Capital Income
1852.6,M3c Sports Supplies Limited,Communities,Community Development,Gresham,8950,07/09/2018,Supplies & Services,88275,Communities
1831.46,Gedling Borough Council,Assets,Current Assets,Parish Election,7100,21/08/2018,Employee Related Expenditure,88806,Assets
1829,Access Doors,Communities,Community Development,Lutterell Hall,8990,04/07/2018,Supplies & Services,86792,Communities
1824,Environment Agency,Neighbourhoods,Waste & Fleet Management,Depot,4001,31/08/2018,Premises Related Expenditure,88659,Neighbourhoods
1811.06,Havas People Ltd,Communities,Planning & Growth,Development Control,1161,09/08/2018,Employee Related Expenditure,88165,Communities
1716.4,Royal Mail Group Ltd,Transformation,Bsu,Central Mail,4871,09/08/2018,Supplies & Services,87680,Transformation
1712.16,Ee Ltd (Airtime),Transformation,Ict,Telephones,4870,14/09/2018,Supplies & Services,89218,Transformation
1706.67,Ee Ltd (Airtime),Transformation,Ict,Telephones,4870,29/08/2018,Supplies & Services,88486,Transformation
1700,Badenoch & Clark,Finance & Corporate Services,Financial Services,Financial Services,4705,18/07/2018,Employee Related Expenditure,87413,Finance & Corporate Services
1695,Amptron Electrical Services Ltd,Neighbourhoods,Leisure Contracts & Car Parks,Leisure Management Contract,1795,11/07/2018,Premises Related Expenditure,87291,Neighbourhoods
1689.59,Maltby & Company,Communities,Community Development,Gresham,8950,17/08/2018,Supplies & Services,88479,Communities
1689.33,Ee Ltd (Airtime),Transformation,Ict,Telephones,4870,18/07/2018,Supplies & Services,87538,Transformation
1670.58,Maltby & Company,Neighbourhoods,Strategic Housing,Hostel Hound Lodge,1111,24/09/2018,Supplies & Services,89683,Neighbourhoods
1665,Patco Events Ltd,Communities,Community Development,Young,1048,26/07/2018,Supplies & Services,87700,Communities
1664.48,Wybone Limited,Neighbourhoods,Waste & Fleet Management,Street Cleansing,1856,04/07/2018,Supplies & Services,87077,Neighbourhoods
1661.01,M3c Sports Supplies Limited,Communities,Community Development,Gresham,8950,06/07/2018,Supplies & Services,86741,Communities
1654.57,Ee Ltd (Airtime),Transformation,Ict,Telephones,4870,11/07/2018,Supplies & Services,86735,Transformation
1654.32,Reach Publishing Services Limited,Finance & Corporate Services,Financial Services,Suspense No Code,5224,17/08/2018,Returned Creditors,88647,Finance & Corporate Services
1650,Dta Electrical,Neighbourhoods,Leisure Contracts & Car Parks,Car Parks,1900,09/08/2018,Premises Related Expenditure,88385,Neighbourhoods
1649.43,Xerox (Uk) Limited,Transformation,Ict,Photocopiers,5017,18/07/2018,Supplies & Services,87528,Transformation
1620,Badenoch & Clark,Finance & Corporate Services,Financial Services,Financial Services,4705,09/08/2018,Employee Related Expenditure,88033,Finance & Corporate Services
1600,Trevor Roberts Associates Ltd,Finance & Corporate Services,Democratic Services,Mayoral Expenses,1001,09/07/2018,Supplies & Services,86619,Finance & Corporate Services
1600,Trevor Roberts Associates Ltd,Finance & Corporate Services,Democratic Services,Members Services,1000,09/08/2018,Employee Related Expenditure,88433,Finance & Corporate Services
1594.88,Maltby & Company,Capital Expenditure,Transformation & Innovation,Bridgford Hall Refurbishment,382,21/08/2018,Third Party Payments,87709,Capital Expenditure
1530,Nottinghamshire County Council,Communities,Local Development Framework,Land Charges,1033,07/09/2018,Supplies & Services,89127,Communities
1528,Fiona Herbert Catering,Communities,Community Development,Community Development,1581,19/09/2018,Supplies & Services,89594,Communities
1527.42,Water Plus,Neighbourhoods,Leisure Contracts & Car Parks,Leisure Management Contract,1795,09/08/2018,Premises Related Expenditure,85901,Neighbourhoods
1519,Obam Lift Services Ltd,Capital Expenditure,Neighbourhoods,Disabled Facilities Grant,332,26/09/2018,Supplies & Services,89748,Capital Expenditure
1511.62,Royal Mail Group Ltd,Transformation,Bsu,Central Mail,4871,18/07/2018,Supplies & Services,87422,Transformation
1500,Bentley Project Management,Capital Expenditure,Transformation & Innovation,Cotgrave Phase 2,387,14/09/2018,Supplies & Services,89158,Capital Expenditure
1500,Idox Software Limited,Capital Expenditure,Transformation & Innovation,Technical Infrastructure,603,28/09/2018,Supplies & Services,89546,Capital Expenditure
1500,Penna Plc,Transformation,Human Resources,Human Resources,4709,21/09/2018,Supplies & Services,89647,Transformation
1500,Service Level Management Ltd,Transformation,Bsu,Central Mail,4871,28/09/2018,Supplies & Services,89315,Transformation
1474,Print Image Network Ltd,Finance & Corporate Services,Democratic Services,Borough Council Elections,1021,11/07/2018,Supplies & Services,87446,Finance & Corporate Services
1447.5,The Marquee Company Limited,Communities,Community Development,Arts,1550,19/09/2018,Supplies & Services,88879,Communities
1440,Wellbeing Clinic Ltd,Transformation,Human Resources,Human Resources,4709,31/07/2018,Supplies & Services,88101,Transformation
1437.8,Edf Energy,Neighbourhoods,Leisure Contracts & Car Parks,Car Parks,1900,09/08/2018,Premises Related Expenditure,88411,Neighbourhoods
1425,Idox Software Limited,Capital Expenditure,Transformation & Innovation,Technical Infrastructure,603,28/09/2018,Supplies & Services,89538,Capital Expenditure
1425,Idox Software Limited,Transformation,Ict,It Rechargeable Costs,4722,06/07/2018,Supplies & Services,86945,Transformation
1418.15,Park Avenue,Communities,Planning & Growth,Development Control,1161,28/09/2018,Employee Related Expenditure,89429,Communities
1416.55,Park Avenue,Communities,Planning & Growth,Development Control,1161,29/08/2018,Employee Related Expenditure,88788,Communities
1400,Gulliver'S Truck Hire Ltd,Neighbourhoods,Waste & Fleet Management,Tanker Services,1948,31/07/2018,Transport Related Expenditure,87960,Neighbourhoods
1389.36,Egbert H Taylor & Co Ltd,Capital Expenditure,Neighbourhoods,Wheeled Bins,310,17/08/2018,Supplies & Services,88666,Capital Expenditure
1370.56,Print Image Network Ltd,Finance & Corporate Services,Democratic Services,Electoral Registration,1026,23/08/2018,Supplies & Services,88776,Finance & Corporate Services
1358.16,Water Plus,Neighbourhoods,Waste & Fleet Management,Depot,4001,21/08/2018,Premises Related Expenditure,88310,Neighbourhoods
1344,Phoenix Software,Transformation,Ict,It Rechargeable Costs,4722,24/07/2018,Supplies & Services,87519,Transformation
1343,Hill Bros (Nottingham) Ltd,Capital Expenditure,Neighbourhoods,Disabled Facilities Grant,332,19/09/2018,Supplies & Services,89423,Capital Expenditure
1334.67,Live And Local Limited,Communities,Community Development,Arts,1550,29/08/2018,Supplies & Services,88862,Communities
1329,Calibre Office Furniture & Interiors Ltd,Transformation,Property Services,Arena Civic Centre,4718,21/09/2018,Supplies & Services,89361,Transformation
1300,Premier Mobility (Uk) Ltd,Capital Expenditure,Neighbourhoods,Disabled Facilities Grant,332,14/09/2018,Supplies & Services,89010,Capital Expenditure
1300,Water Centres Ltd,Capital Expenditure,Neighbourhoods,Disabled Facilities Grant,332,29/08/2018,Supplies & Services,88771,Capital Expenditure
1290,Pedal Power People Company,Communities,Community Development,Sports Development,1593,24/09/2018,Supplies & Services,89367,Communities
1289.79,Virgin Media Business,Transformation,Ict,It Rechargeable Costs,4722,11/07/2018,Supplies & Services,73519,Transformation
1286.33,Royal Mail Group Ltd,Transformation,Bsu,Central Mail,4871,10/09/2018,Supplies & Services,88855,Transformation
1275,Badenoch & Clark,Finance & Corporate Services,Financial Services,Financial Services,4705,04/07/2018,Employee Related Expenditure,87218,Finance & Corporate Services
1275,Badenoch & Clark,Finance & Corporate Services,Financial Services,Financial Services,4705,29/08/2018,Employee Related Expenditure,88318,Finance & Corporate Services
1275,Badenoch & Clark,Finance & Corporate Services,Financial Services,Financial Services,4705,29/08/2018,Employee Related Expenditure,88562,Finance & Corporate Services
1275,Badenoch & Clark,Finance & Corporate Services,Financial Services,Financial Services,4705,29/08/2018,Employee Related Expenditure,88604,Finance & Corporate Services
1275,Badenoch & Clark,Finance & Corporate Services,Financial Services,Financial Services,4705,29/08/2018,Employee Related Expenditure,88605,Finance & Corporate Services
1260,Parkwood Community Leisure,Transformation,Bsu,Business Support Unit,4805,11/07/2018,Supplies & Services,87153,Transformation
1260,Wallgate Limited,Transformation,Property Services,Parish Run Pub Conveniences,1072,04/07/2018,Premises Related Expenditure,86825,Transformation
1258.96,Premier Heating Services (East Midlands) Ltd,Neighbourhoods,Waste & Fleet Management,Depot,4001,09/07/2018,Premises Related Expenditure,86594,Neighbourhoods
1256.63,Print Image Network Ltd,Assets,Current Assets,Parish Election,7100,07/09/2018,Supplies & Services,88819,Assets
1227.57,Royal Mail Group Ltd,Transformation,Bsu,Central Mail,4871,23/08/2018,Supplies & Services,88463,Transformation
1227.5,Freeth Cartwright Llp,Capital Expenditure,Transformation & Innovation,Multi Service Centre,348,03/08/2018,Supplies & Services,87974,Capital Expenditure
1225,Modern Mindset Ltd,Capital Expenditure,Transformation & Innovation,Applications/Apps,605,31/07/2018,Supplies & Services,88091,Capital Expenditure
1218.41,Water Plus,Neighbourhoods,Waste & Fleet Management,Tanker Services,1948,09/08/2018,Supplies & Services,88412,Neighbourhoods
1215,Badenoch & Clark,Finance & Corporate Services,Financial Services,Financial Services,4705,04/07/2018,Employee Related Expenditure,87244,Finance & Corporate Services
1200,Wellbeing Clinic Ltd,Transformation,Human Resources,Human Resources,4709,31/07/2018,Supplies & Services,88102,Transformation
1190,Back Chat Brass Ltd,Communities,Community Development,Tour Of Britain 2018,1583,26/09/2018,Supplies & Services,89349,Communities
1189.84,Royal Mail Group Ltd,Transformation,Bsu,Central Mail,4871,09/08/2018,Supplies & Services,88150,Transformation
1187.2,Ep Consulting Building Services Engineers,Capital Expenditure,Communties,Gamston Community Hall,317,19/09/2018,Third Party Payments,89198,Capital Expenditure
1187.2,Ep Consulting Building Services Engineers,Capital Expenditure,Communties,Gresham Sports Pavilion,324,19/09/2018,Third Party Payments,89198,Capital Expenditure
1187.2,Ep Consulting Building Services Engineers,Capital Expenditure,Communties,Lutterell Hall,326,19/09/2018,Third Party Payments,89198,Capital Expenditure
1187.2,Ep Consulting Building Services Engineers,Capital Expenditure,Communties,West Park Sports Pavilion,321,19/09/2018,Third Party Payments,89198,Capital Expenditure
1187.2,Ep Consulting Building Services Engineers,Capital Expenditure,Neighbourhoods,Hound Lodge Enhancements,308,19/09/2018,Third Party Payments,89198,Capital Expenditure
1168.34,Maltby & Company,Capital Expenditure,Transformation & Innovation,Bridgford Hall Refurbishment,382,21/08/2018,Third Party Payments,88039,Capital Expenditure
1153.95,Park Avenue,Communities,Planning & Growth,Development Control,1161,28/09/2018,Employee Related Expenditure,89721,Communities
1150,Events Of Excellence,Communities,Community Development,Arts,1550,31/08/2018,Supplies & Services,89008,Communities
1147.68,The South Wolds Academy And Sixth Form,Neighbourhoods,Leisure Contracts & Car Parks,Leisure Management Contract,1795,17/08/2018,Premises Related Expenditure,86954,Neighbourhoods
1144.93,Creative Flavours Catering Ltd,Finance & Corporate Services,Democratic Services,Members Services,1000,19/07/2018,Supplies & Services,86602,Finance & Corporate Services
1134.05,Park Avenue,Communities,Planning & Growth,Development Control,1161,28/09/2018,Employee Related Expenditure,89235,Communities
1124.1,Tunstall Telecom,Neighbourhoods,Strategic Housing,Home Alarms,1137,21/08/2018,Supplies & Services,88303,Neighbourhoods
1120,Zurich Municipal,Finance & Corporate Services,Financial Services,Rushcliffe Enterprises Ltd,4804,19/09/2018,Supplies & Services,89163,Finance & Corporate Services
1090,Local Government Association,Finance & Corporate Services,Emt & Transformation,Executive Management Team,4721,09/08/2018,Supplies & Services,88179,Finance & Corporate Services
1088,Tip Europe Limited,Neighbourhoods,Waste & Fleet Management,Garage,8700,03/08/2018,Transport Related Expenditure,88035,Neighbourhoods
1078,The Marquee Company Limited,Communities,Community Development,Sports Development,1593,14/09/2018,Supplies & Services,89366,Communities
1071.73,Ccs Media,Capital Expenditure,Transformation & Innovation,Ict Replacement Programme,592,06/07/2018,Supplies & Services,87064,Capital Expenditure
1062.5,Badenoch & Clark,Finance & Corporate Services,Financial Services,Financial Services,4705,18/07/2018,Employee Related Expenditure,87585,Finance & Corporate Services
1060,Enigma Health & Safety Management Ltd,Transformation,Property Services,The Point,1886,26/09/2018,Supplies & Services,89755,Transformation
1056,Parkwood Community Leisure,Neighbourhoods,Leisure Contracts & Car Parks,Leisure Management Contract,1795,18/07/2018,Employee Related Expenditure,87324,Neighbourhoods
1047.73,Vip System Limited,Neighbourhoods,Environmental Health,Hackney Carriage/Private Hire,1031,03/08/2018,Supplies & Services,87976,Neighbourhoods
1041.92,Arden Winch & Co Ltd,Neighbourhoods,Waste & Fleet Management,Waste Collection,8403,23/08/2018,Supplies & Services,88567,Neighbourhoods
1030.56,Reach Publishing Services Limited,Finance & Corporate Services,Financial Services,Suspense No Code,5224,15/08/2018,Returned Creditors,88438,Finance & Corporate Services
1021,Print Image Network Ltd,Assets,Current Assets,Parish Election,7100,11/07/2018,Supplies & Services,87431,Assets
1020,Streetwise Environmental Ltd,Communities,Community Development,Environmental Promotion,1590,24/09/2018,Supplies & Services,89321,Communities
1007.67,Broxtowe Borough Council,Neighbourhoods,Leisure Contracts & Car Parks,Car Parks,1900,09/08/2018,Supplies & Services,88455,Neighbourhoods
999,Ninesharp Ltd,Transformation,Ict,It,4703,11/07/2018,Employee Related Expenditure,86802,Transformation
999,Ninesharp Ltd,Transformation,Ict,It,4703,11/07/2018,Employee Related Expenditure,87204,Transformation
999,Ninesharp Ltd,Transformation,Ict,It,4703,11/07/2018,Employee Related Expenditure,87330,Transformation
999,Ninesharp Ltd,Transformation,Ict,It,4703,18/07/2018,Employee Related Expenditure,87414,Transformation
999,Ninesharp Ltd,Transformation,Ict,It,4703,19/07/2018,Employee Related Expenditure,87079,Transformation
999,Ninesharp Ltd,Transformation,Ict,It,4703,03/08/2018,Employee Related Expenditure,87771,Transformation
999,Ninesharp Ltd,Transformation,Ict,It,4703,09/08/2018,Employee Related Expenditure,88260,Transformation
999,Ninesharp Ltd,Transformation,Ict,It,4703,17/08/2018,Employee Related Expenditure,88261,Transformation
999,Ninesharp Ltd,Transformation,Ict,It,4703,23/08/2018,Employee Related Expenditure,88439,Transformation
999,Ninesharp Ltd,Transformation,Ict,It,4703,29/08/2018,Employee Related Expenditure,88660,Transformation
998.56,The Best Connection Group Limited,Neighbourhoods,Waste & Fleet Management,Waste Collection,8403,11/07/2018,Employee Related Expenditure,87150,Neighbourhoods
986,Print Image Network Ltd,Finance & Corporate Services,Democratic Services,Borough Council Elections,1021,19/09/2018,Supplies & Services,89351,Finance & Corporate Services
980,The Best Connection Group Limited,Neighbourhoods,Waste & Fleet Management,Waste Collection,8403,18/07/2018,Employee Related Expenditure,87346,Neighbourhoods
974.18,Proav Limited,Capital Expenditure,Transformation & Innovation,Ict Replacement Programme,592,17/08/2018,Supplies & Services,88074,Capital Expenditure
952.48,Ccs Media,Capital Expenditure,Transformation & Innovation,Ict Replacement Programme,592,03/08/2018,Supplies & Services,87767,Capital Expenditure
949.6,P B Auto Electrics,Neighbourhoods,Waste & Fleet Management,Fleet,8600,10/08/2018,Premises Related Expenditure,88083,Neighbourhoods
949.2,Reach Publishing Services Limited,Communities,Local Development Framework,Development Plans,1232,28/09/2018,Supplies & Services,89824,Communities
934.42,Xerox (Uk) Limited,Transformation,Ict,Photocopiers,5017,18/07/2018,Supplies & Services,87529,Transformation
933.48,Water Plus,Neighbourhoods,Waste & Fleet Management,Depot,4001,14/09/2018,Premises Related Expenditure,88921,Neighbourhoods
926,Jsm Builders And Joiners Ltd,Capital Expenditure,Communties,Warm Homes On Prescription,337,28/09/2018,Supplies & Services,89681,Capital Expenditure
922.08,Reach Publishing Services Limited,Finance & Corporate Services,Financial Services,Suspense No Code,5224,17/08/2018,Returned Creditors,88437,Finance & Corporate Services
910,Egbert H Taylor & Co Ltd,Capital Expenditure,Neighbourhoods,Wheeled Bins,310,14/09/2018,Supplies & Services,88949,Capital Expenditure
904,A R Signs Ltd,Finance & Corporate Services,"Performance, Repn & Comms",Performance And Reputation,4710,14/09/2018,Supplies & Services,89018,Finance & Corporate Services
904,Reach Publishing Services Limited,Communities,Planning & Growth,Development Control,1161,26/09/2018,Supplies & Services,89182,Communities
900,Civica Uk Ltd,Transformation,Ict,It Rechargeable Costs,4722,31/08/2018,Supplies & Services,86247,Transformation
900,Systemair Limited,Transformation,Property Services,Arena Civic Centre,4718,06/07/2018,Premises Related Expenditure,87038,Transformation
900,Wellbeing Clinic Ltd,Transformation,Human Resources,Human Resources,4709,31/07/2018,Supplies & Services,88093,Transformation
900,Wellbeing Clinic Ltd,Transformation,Human Resources,Human Resources,4709,31/07/2018,Supplies & Services,88094,Transformation
896,Creative Flavours Catering Ltd,Communities,Community Development,Young,1048,18/07/2018,Supplies & Services,87518,Communities
883.2,Coral Racing Limited,Finance & Corporate Services,Financial Services,Suspense No Code,5224,17/07/2018,Returned Creditors,87531,Finance & Corporate Services
882,A R Signs Ltd,Finance & Corporate Services,"Performance, Repn & Comms",Performance And Reputation,4710,31/08/2018,Supplies & Services,88700,Finance & Corporate Services
870.1,Reach Publishing Services Limited,Communities,Planning & Growth,Development Control,1161,17/08/2018,Supplies & Services,88671,Communities
870,Egbert H Taylor & Co Ltd,Neighbourhoods,Waste & Fleet Management,Glass Recycling & Bring Sites,8407,14/09/2018,Supplies & Services,88948,Neighbourhoods
870,Freeth Cartwright Llp,Capital Expenditure,Transformation & Innovation,Cotgrave Masterplan,303,03/08/2018,Supplies & Services,87975,Capital Expenditure
866.34,Reach Publishing Services Limited,Communities,Planning & Growth,Development Control,1161,09/08/2018,Supplies & Services,88273,Communities
864.9,Carl Dean Associates Limited,Capital Expenditure,Transformation & Innovation,Multi Service Centre,348,18/07/2018,Supplies & Services,87284,Capital Expenditure
864.9,Carl Dean Associates Limited,Capital Expenditure,Transformation & Innovation,Multi Service Centre,348,17/08/2018,Supplies & Services,88279,Capital Expenditure
864.9,Carl Dean Associates Limited,Capital Expenditure,Transformation & Innovation,Multi Service Centre,348,14/09/2018,Supplies & Services,89129,Capital Expenditure
862.02,Maltby & Company,Neighbourhoods,Waste & Fleet Management,Depot,4001,04/07/2018,Premises Related Expenditure,86755,Neighbourhoods
858.8,Reach Publishing Services Limited,Communities,Planning & Growth,Development Control,1161,09/07/2018,Supplies & Services,87214,Communities
858.8,Reach Publishing Services Limited,Communities,Planning & Growth,Development Control,1161,17/07/2018,Supplies & Services,87644,Communities
851.1,Streetwise Environmental Ltd,Neighbourhoods,Waste & Fleet Management,Glass Recycling & Bring Sites,8407,31/08/2018,Supplies & Services,88640,Neighbourhoods
850.16,The Best Connection Group Limited,Neighbourhoods,Waste & Fleet Management,Waste Collection,8403,04/07/2018,Employee Related Expenditure,86952,Neighbourhoods
850,Badenoch & Clark,Finance & Corporate Services,Financial Services,Financial Services,4705,24/07/2018,Employee Related Expenditure,87971,Finance & Corporate Services
850,Badenoch & Clark,Finance & Corporate Services,Financial Services,Financial Services,4705,07/09/2018,Employee Related Expenditure,89013,Finance & Corporate Services
849.5,The South Wolds Academy And Sixth Form,Neighbourhoods,Leisure Contracts & Car Parks,Leisure Management Contract,1795,24/07/2018,Premises Related Expenditure,87400,Neighbourhoods
845,Daykin Floor Renovation Ltd,Communities,Community Development,Sir Julien Cahn Pavilion,8993,26/09/2018,Premises Related Expenditure,89537,Communities
842.71,Water Plus,Communities,Community Development,Gamston Community Hall,8992,09/08/2018,Premises Related Expenditure,87660,Communities
840,Patco Events Ltd,Communities,Community Development,Arts,1550,19/09/2018,Supplies & Services,88328,Communities
840,Wellbeing Clinic Ltd,Transformation,Human Resources,Human Resources,4709,31/07/2018,Supplies & Services,88095,Transformation
840,Wellbeing Clinic Ltd,Transformation,Human Resources,Human Resources,4709,31/07/2018,Supplies & Services,88099,Transformation
840,Wellbeing Clinic Ltd,Transformation,Human Resources,Human Resources,4709,31/07/2018,Supplies & Services,88100,Transformation
835,Co-Operative Funeral Care,Neighbourhoods,Environmental Health,Public Health,1127,14/09/2018,Supplies & Services,88429,Neighbourhoods
831.61,Eon,Transformation,Economic Regeneration,Cotgrave Precinct,1885,18/07/2018,Premises Related Expenditure,87697,Transformation
801.34,British Gas Business,Neighbourhoods,Waste & Fleet Management,Depot,4001,24/09/2018,Premises Related Expenditure,89064,Neighbourhoods
800,Box Property Consultants Ltd,Capital Expenditure,Transformation & Innovation,Cotgrave Phase 2,387,07/09/2018,Supplies & Services,89043,Capital Expenditure
798.26,Daisy Communications Ltd,Transformation,Ict,Telephones,4870,18/07/2018,Supplies & Services,87462,Transformation
796.5,Ninesharp Ltd,Transformation,Ict,It,4703,11/07/2018,Employee Related Expenditure,86627,Transformation
790,Dta Electrical,Transformation,Property Services,The Point,1886,31/07/2018,Premises Related Expenditure,87973,Transformation
780,Emec Ecology,Communities,Community Development,Environmental Promotion,1590,10/09/2018,Supplies & Services,88880,Communities
775,Staddon & Sons (Nottingham Ltd),Neighbourhoods,Strategic Housing,Hostel Hound Lodge,1111,17/08/2018,Supplies & Services,88374,Neighbourhoods
772,Medigold Health Consultancy Ltd,Transformation,Human Resources,Human Resources,4709,09/07/2018,Supplies & Services,86578,Transformation
771.71,Egbert H Taylor & Co Ltd,Capital Expenditure,Neighbourhoods,Wheeled Bins,310,17/08/2018,Supplies & Services,88667,Capital Expenditure
771.55,British Gas Business,Transformation,Property Services,The Point,1886,29/08/2018,Premises Related Expenditure,88662,Transformation
770,Hopkins Solicitors,Capital Expenditure,Transformation & Innovation,Cotgrave Masterplan,303,14/09/2018,Supplies & Services,89318,Capital Expenditure
768.4,Reach Publishing Services Limited,Communities,Planning & Growth,Development Control,1161,26/07/2018,Supplies & Services,88073,Communities
768.4,Reach Publishing Services Limited,Communities,Planning & Growth,Development Control,1161,03/08/2018,Supplies & Services,88259,Communities
768.4,Reach Publishing Services Limited,Communities,Planning & Growth,Development Control,1161,09/08/2018,Supplies & Services,88452,Communities
768.35,P B Auto Electrics,Neighbourhoods,Waste & Fleet Management,Fleet,8600,14/09/2018,Premises Related Expenditure,89157,Neighbourhoods
768,P.Waller (Decorators) Ltd,Neighbourhoods,Strategic Housing,Hostel Hound Lodge,1111,04/07/2018,Supplies & Services,86895,Neighbourhoods
762.6,Engineering Services Consultancy Limited,Capital Expenditure,Transformation & Innovation,Multi Service Centre,348,18/07/2018,Supplies & Services,87285,Capital Expenditure
762.6,Engineering Services Consultancy Limited,Capital Expenditure,Transformation & Innovation,Multi Service Centre,348,17/08/2018,Supplies & Services,88173,Capital Expenditure
762.6,Engineering Services Consultancy Limited,Capital Expenditure,Transformation & Innovation,Multi Service Centre,348,24/09/2018,Supplies & Services,89159,Capital Expenditure
761.85,P B Auto Electrics,Neighbourhoods,Waste & Fleet Management,Fleet,8600,10/08/2018,Premises Related Expenditure,88085,Neighbourhoods
758.07,Maltby & Company,Neighbourhoods,Strategic Housing,Hostel Hound Lodge,1111,04/07/2018,Supplies & Services,86757,Neighbourhoods
750,Dta Electrical,Communities,Community Development,Gresham,8950,10/09/2018,Supplies & Services,88951,Communities
750,Friends Of Bridgford Park,Finance & Corporate Services,Democratic Services,Members Services,1000,17/08/2018,Supplies & Services,88494,Finance & Corporate Services
747,East Cambridgeshire District Council,Neighbourhoods,Strategic Housing,Homelessness Prevention,1147,14/09/2018,Supplies & Services,88296,Neighbourhoods
747,Office Furniture Online,Transformation,Property Services,Arena Civic Centre,4718,14/09/2018,Supplies & Services,89283,Transformation
742.3,The South Wolds Academy And Sixth Form,Neighbourhoods,Leisure Contracts & Car Parks,Leisure Management Contract,1795,18/07/2018,Premises Related Expenditure,82574,Neighbourhoods
742,The Window Film Company Ltd,Transformation,Economic Regeneration,Cotgrave Precinct,1885,17/08/2018,Supplies & Services,88278,Transformation
740,Ep Consulting Building Services Engineers,Transformation,Property Services,Land At Chapel Lane,4799,11/07/2018,Premises Related Expenditure,87499,Transformation
733.46,Xerox (Uk) Limited,Transformation,Ict,Photocopiers,5017,18/07/2018,Supplies & Services,87497,Transformation
730.16,The South Wolds Academy And Sixth Form,Neighbourhoods,Leisure Contracts & Car Parks,Leisure Management Contract,1795,19/09/2018,Premises Related Expenditure,89103,Neighbourhoods
730,Water Centres Ltd,Capital Expenditure,Neighbourhoods,Disabled Facilities Grant,332,31/07/2018,Supplies & Services,88055,Capital Expenditure
730,Water Centres Ltd,Capital Expenditure,Neighbourhoods,Disabled Facilities Grant,332,03/08/2018,Supplies & Services,88191,Capital Expenditure
723.2,Reach Publishing Services Limited,Communities,Planning & Growth,Development Control,1161,21/09/2018,Supplies & Services,89183,Communities
720,Fred Brown Car Repairs Limited,Neighbourhoods,Environmental Health,Hackney Carriage/Private Hire,1031,31/08/2018,Supplies & Services,88330,Neighbourhoods
720,Vinshire Plumbing & Heating Limited,Capital Expenditure,Communties,Warm Homes On Prescription,337,21/09/2018,Supplies & Services,89205,Capital Expenditure
720,Wallgate Limited,Communities,Community Development,Lutterell Hall,8990,04/07/2018,Premises Related Expenditure,86825,Communities
718.84,The South Wolds Academy And Sixth Form,Neighbourhoods,Leisure Contracts & Car Parks,Leisure Management Contract,1795,24/07/2018,Premises Related Expenditure,87348,Neighbourhoods
717.86,Mad Dog Sports,Communities,Community Development,Tour Of Britain 2018,1583,14/09/2018,Supplies & Services,89370,Communities
710.18,The South Wolds Academy And Sixth Form,Neighbourhoods,Leisure Contracts & Car Parks,Leisure Management Contract,1795,31/08/2018,Premises Related Expenditure,88770,Neighbourhoods
710,Print Image Network Ltd,Finance & Corporate Services,Democratic Services,Borough Council Elections,1021,11/07/2018,Supplies & Services,87447,Finance & Corporate Services
709.72,Water Plus,Neighbourhoods,Waste & Fleet Management,Depot,4001,07/09/2018,Premises Related Expenditure,88596,Neighbourhoods
708.8,Jne Security Ltd,Neighbourhoods,Environmental Health,Community Safety,1598,11/07/2018,Supplies & Services,86892,Neighbourhoods
700.6,Reach Publishing Services Limited,Communities,Planning & Growth,Development Control,1161,26/09/2018,Supplies & Services,89596,Communities
700,Streetwise Environmental Ltd,Transformation,Property Services,Open Spaces & Footpaths,1290,17/08/2018,Premises Related Expenditure,87740,Transformation
697,Freeths Llp,Transformation,Economic Regeneration,Economic Development,1887,14/09/2018,Supplies & Services,89317,Transformation
689.85,P B Auto Electrics,Neighbourhoods,Waste & Fleet Management,Fleet,8600,10/08/2018,Premises Related Expenditure,88084,Neighbourhoods
684.6,Cotgrave Town Council,Transformation,Economic Regeneration,Cotgrave Precinct,1885,28/09/2018,Premises Related Expenditure,89353,Transformation
680,Event-X Management & Venue Finding Services,Finance & Corporate Services,Emt & Transformation,Executive Management Team,4721,10/09/2018,Supplies & Services,88973,Finance & Corporate Services
678.89,Solace Group Ltd,Transformation,Human Resources,Corporate Training,4893,26/09/2018,Employee Related Expenditure,88300,Transformation
678,Reach Publishing Services Limited,Communities,Planning & Growth,Development Control,1161,29/08/2018,Supplies & Services,88919,Communities
673.32,Pinnacle Professional Services Limited,Capital Expenditure,Transformation & Innovation,Multi Service Centre,348,31/07/2018,Supplies & Services,88145,Capital Expenditure
671,Print Image Network Ltd,Assets,Current Assets,Parish Election,7100,11/07/2018,Supplies & Services,87430,Assets
670.77,Maltby & Company,Neighbourhoods,Waste & Fleet Management,Depot,4001,04/07/2018,Supplies & Services,86762,Neighbourhoods
670,Grapefruit Creative,Finance & Corporate Services,"Performance, Repn & Comms",Performance And Reputation,4710,18/07/2018,Supplies & Services,87731,Finance & Corporate Services
667.96,Reach Publishing Services Limited,Communities,Planning & Growth,Development Control,1161,31/07/2018,Supplies & Services,86831,Communities
665.64,Havas People Ltd,Finance & Corporate Services,Financial Services,Financial Services,4705,06/07/2018,Employee Related Expenditure,86941,Finance & Corporate Services
660,Streetwise Environmental Ltd,Transformation,Property Services,Open Spaces & Footpaths,1290,19/09/2018,Premises Related Expenditure,88140,Transformation
660,Wellbeing Clinic Ltd,Transformation,Human Resources,Human Resources,4709,31/07/2018,Supplies & Services,88096,Transformation
653.17,British Gas Business,Transformation,Property Services,The Point,1886,18/07/2018,Premises Related Expenditure,87545,Transformation
650,Dkn Decorators Ltd,Neighbourhoods,Leisure Contracts & Car Parks,Leisure Management Contract,1795,28/09/2018,Premises Related Expenditure,89400,Neighbourhoods
650,Hex Productions,Finance & Corporate Services,"Performance, Repn & Comms",Performance And Reputation,4710,14/09/2018,Supplies & Services,89439,Finance & Corporate Services
649.25,Lyreco,Communities,Community Development,Facilities Team,4714,17/07/2018,Supplies & Services,87435,Communities
648.91,Royal Mail Group Ltd,Transformation,Bsu,Central Mail,4871,09/08/2018,Supplies & Services,87349,Transformation
636.38,British Gas Business,Communities,Community Development,Gresham,8950,24/09/2018,Premises Related Expenditure,89591,Communities
636,Medigold Health Consultancy Ltd,Transformation,Human Resources,Human Resources,4709,28/09/2018,Employee Related Expenditure,89434,Transformation
635,Bounceabout,Communities,Community Development,Arts,1550,31/08/2018,Supplies & Services,88643,Communities
632.79,Reach Publishing Services Limited,Communities,Planning & Growth,Development Control,1161,17/08/2018,Supplies & Services,88453,Communities
630,Haymarket Media Group,Communities,Local Development Framework,Development Plans,1232,14/09/2018,Supplies & Services,88795,Communities
630,Haymarket Media Group,Communities,Planning & Growth,Development Control,1161,14/09/2018,Supplies & Services,88795,Communities
629.35,Croner-I Limited,Transformation,Property Services,Property Services,4713,04/07/2018,Supplies & Services,87200,Transformation
628,East Midlands Markets And Events Ltd,Transformation,Property Services,Bingham Market Stalls,1880,14/09/2018,Supplies & Services,88854,Transformation
620,Thorn Baker Limited,Neighbourhoods,Waste & Fleet Management,Waste Collection,8403,04/07/2018,Employee Related Expenditure,87081,Neighbourhoods
620,Thorn Baker Limited,Neighbourhoods,Waste & Fleet Management,Waste Collection,8403,04/07/2018,Employee Related Expenditure,87215,Neighbourhoods
620,Thorn Baker Limited,Neighbourhoods,Waste & Fleet Management,Waste Collection,8403,09/07/2018,Employee Related Expenditure,87334,Neighbourhoods
620,Thorn Baker Limited,Neighbourhoods,Waste & Fleet Management,Waste Collection,8403,18/07/2018,Employee Related Expenditure,87651,Neighbourhoods
615.27,Maltby & Company,Neighbourhoods,Leisure Contracts & Car Parks,Leisure Management Contract,1795,04/07/2018,Premises Related Expenditure,86761,Neighbourhoods
615,First Testing Limited,Transformation,Property Services,Property Services,4713,28/09/2018,Supplies & Services,89536,Transformation
612.2,Driver Hire Nottingham,Neighbourhoods,Waste & Fleet Management,Waste Collection,8403,09/07/2018,Employee Related Expenditure,87464,Neighbourhoods
612,East Midlands Markets And Events Ltd,Transformation,Property Services,Bingham Market Stalls,1880,14/09/2018,Supplies & Services,88851,Transformation
606,Print Image Network Ltd,Finance & Corporate Services,Democratic Services,Borough Council Elections,1021,19/09/2018,Supplies & Services,89350,Finance & Corporate Services
604.66,Western Power Distribution (East Mids) Ltd,Capital Expenditure,Transformation & Innovation,Cotgrave Masterplan,303,28/09/2018,Supplies & Services,89389,Capital Expenditure
600,Ep Consulting Building Services Engineers,Neighbourhoods,Leisure Contracts & Car Parks,Leisure Management Contract,1795,19/09/2018,Premises Related Expenditure,89207,Neighbourhoods
600,The Information Commissioner,Finance & Corporate Services,Democratic Services,Members Services,1000,09/07/2018,Supplies & Services,87098,Finance & Corporate Services
600,Tunstall Response Ltd,Neighbourhoods,Strategic Housing,Home Alarms,1137,11/07/2018,Employee Related Expenditure,86949,Neighbourhoods
597.54,Print Image Network Ltd,Finance & Corporate Services,Democratic Services,Electoral Registration,1026,18/07/2018,Supplies & Services,87453,Finance & Corporate Services
594.55,Vip System Limited,Neighbourhoods,Environmental Health,Hackney Carriage/Private Hire,1031,14/09/2018,Supplies & Services,89281,Neighbourhoods
594,The Best Connection Group Limited,Neighbourhoods,Waste & Fleet Management,Waste Collection,8403,09/08/2018,Employee Related Expenditure,87972,Neighbourhoods
590.47,Driver Hire Nottingham,Neighbourhoods,Waste & Fleet Management,Waste Collection,8403,18/07/2018,Employee Related Expenditure,87675,Neighbourhoods
590.47,Driver Hire Nottingham,Neighbourhoods,Waste & Fleet Management,Waste Collection,8403,17/08/2018,Employee Related Expenditure,88597,Neighbourhoods
588.25,Aag It Services,Finance & Corporate Services,Financial Services,Suspense No Code,5224,18/07/2018,Returned Creditors,87416,Finance & Corporate Services
585.03,Driver Hire Nottingham,Neighbourhoods,Waste & Fleet Management,Waste Collection,8403,04/07/2018,Employee Related Expenditure,87106,Neighbourhoods
583.5,Temperature Control Limited,Transformation,Property Services,Arena Civic Centre,4718,18/07/2018,Premises Related Expenditure,87496,Transformation
583.34,The Tudor Lodge Hotel,Neighbourhoods,Strategic Housing,Homeless B&B,1110,14/09/2018,Supplies & Services,87962,Neighbourhoods
583.34,The Tudor Lodge Hotel,Neighbourhoods,Strategic Housing,Homeless B&B,1110,14/09/2018,Supplies & Services,88682,Neighbourhoods
579.6,Driver Hire Nottingham,Neighbourhoods,Waste & Fleet Management,Waste Collection,8403,11/07/2018,Employee Related Expenditure,87546,Neighbourhoods
579.6,Driver Hire Nottingham,Neighbourhoods,Waste & Fleet Management,Waste Collection,8403,26/07/2018,Employee Related Expenditure,88052,Neighbourhoods
579.6,Driver Hire Nottingham,Neighbourhoods,Waste & Fleet Management,Waste Collection,8403,03/08/2018,Employee Related Expenditure,88156,Neighbourhoods
579.6,Driver Hire Nottingham,Neighbourhoods,Waste & Fleet Management,Waste Collection,8403,09/08/2018,Employee Related Expenditure,88311,Neighbourhoods
578.52,Susan Hart Nutrition Coach,Communities,Community Development,Health Development,1058,31/07/2018,Premises Related Expenditure,88078,Communities
578.5,Normanton Screenprint,Neighbourhoods,Environmental Health,Community Safety,1598,03/08/2018,Supplies & Services,87511,Neighbourhoods
577,Dta Electrical,Communities,Community Development,Alford Road,8940,26/09/2018,Premises Related Expenditure,89524,Communities
576.6,Certas Energy T/A Pace Fuelcare,Neighbourhoods,Waste & Fleet Management,Fleet,8600,24/07/2018,Transport Related Expenditure,87870,Neighbourhoods
576,Medigold Health Consultancy Ltd,Transformation,Human Resources,Human Resources,4709,31/08/2018,Supplies & Services,88810,Transformation
575.48,Broxtowe Borough Council,Neighbourhoods,Leisure Contracts & Car Parks,Car Parks,1900,24/07/2018,Supplies & Services,87409,Neighbourhoods
574.64,Electoral Reform Services,Finance & Corporate Services,Democratic Services,Electoral Registration,1026,19/09/2018,Supplies & Services,89186,Finance & Corporate Services
574.15,Easibathe Limited,Capital Expenditure,Neighbourhoods,Discretionary Top-Ups Dfgs,333,21/09/2018,Supplies & Services,89550,Capital Expenditure
570,Fred Brown Car Repairs Limited,Neighbourhoods,Environmental Health,Hackney Carriage/Private Hire,1031,19/09/2018,Supplies & Services,89132,Neighbourhoods
570,Streetwise Environmental Ltd,Communities,Community Development,Young - European Project,1044,03/08/2018,Supplies & Services,87967,Communities
565,M3c Sports Supplies Limited,Communities,Community Development,Gresham,8950,06/07/2018,Premises Related Expenditure,86887,Communities
564.95,Fixfire,Neighbourhoods,Waste & Fleet Management,Depot,4001,17/08/2018,Supplies & Services,88642,Neighbourhoods
561.77,Reach Publishing Services Limited,Communities,Planning & Growth,Development Control,1161,31/08/2018,Supplies & Services,89029,Communities
550,Bsp Consulting,Capital Expenditure,Transformation & Innovation,Cotgrave Phase 2,387,10/09/2018,Supplies & Services,88878,Capital Expenditure
546.17,Reach Publishing Services Limited,Communities,Planning & Growth,Development Control,1161,09/07/2018,Supplies & Services,87213,Communities
545,The Marquee Company Limited,Communities,Community Development,Arts,1550,31/07/2018,Supplies & Services,88144,Communities
541.34,Royal Mail Group Ltd,Finance & Corporate Services,Democratic Services,Borough Council Elections,1021,04/07/2018,Supplies & Services,86926,Finance & Corporate Services
540.16,British Gas Business,Neighbourhoods,Waste & Fleet Management,Depot,4001,19/07/2018,Premises Related Expenditure,87321,Neighbourhoods
540,A R Signs Ltd,Finance & Corporate Services,"Performance, Repn & Comms",Performance And Reputation,4710,07/09/2018,Supplies & Services,89025,Finance & Corporate Services
540,Fred Brown Car Repairs Limited,Neighbourhoods,Environmental Health,Hackney Carriage/Private Hire,1031,31/08/2018,Supplies & Services,88317,Neighbourhoods
540,Wellbeing Clinic Ltd,Transformation,Human Resources,Human Resources,4709,31/07/2018,Supplies & Services,88097,Transformation
539.8,Fixfire,Communities,Community Development,West Park,8994,10/09/2018,Supplies & Services,88397,Communities
536,Nottingham City Council,Finance & Corporate Services,Emt & Transformation,Executive Management Team,4721,17/08/2018,Supplies & Services,88608,Finance & Corporate Services
530,Central Fire Systems Ltd,Transformation,Property Services,The Point,1886,19/07/2018,Premises Related Expenditure,87305,Transformation
528.49,Arc Property Services Partnership Limited,Communities,Community Development,West Park,8994,28/09/2018,Premises Related Expenditure,78667,Communities
526.96,Maltby & Company,Transformation,Economic Regeneration,Cotgrave Precinct,1885,29/08/2018,Premises Related Expenditure,88480,Transformation
526.92,Maltby & Company,Communities,Community Development,Lutterell Hall,8990,04/07/2018,Supplies & Services,86762,Communities
525.61,Frontline Communications Group Limited,Transformation,Customer Services,Customer Services,4807,21/09/2018,Supplies & Services,89056,Transformation
524.84,British Gas Business,Communities,Community Development,Alford Road,8940,09/07/2018,Premises Related Expenditure,87108,Communities
520.89,Maltby & Company,Neighbourhoods,Leisure Contracts & Car Parks,Leisure Management Contract,1795,18/07/2018,Premises Related Expenditure,86885,Neighbourhoods
520.59,Lyreco,Communities,Community Development,Facilities Team,4714,26/09/2018,Supplies & Services,89123,Communities
520,The Information Commissioner,Finance & Corporate Services,Democratic Services,Members Services,1000,29/08/2018,Supplies & Services,88943,Finance & Corporate Services
519.49,British Gas Business,Communities,Community Development,Gresham,8950,03/08/2018,Premises Related Expenditure,87877,Communities
518.65,Crown Security Solutions Ltd,Communities,Community Development,Tour Of Britain 2018,1583,24/09/2018,Supplies & Services,89373,Communities
515.79,Broxtowe Borough Council,Neighbourhoods,Leisure Contracts & Car Parks,Car Parks,1900,06/07/2018,Supplies & Services,87410,Neighbourhoods
512.17,Maltby & Company,Transformation,Property Services,Street Nameplates & Pub. Signs,1920,26/07/2018,Supplies & Services,87707,Transformation
511.85,The Irongate Group Limited,Transformation,Customer Services,Customer Services,4807,18/07/2018,Supplies & Services,87295,Transformation
509.97,Susan Hart Nutrition Coach,Communities,Community Development,Sports Development,1593,14/09/2018,Supplies & Services,89368,Communities
508.5,Reach Publishing Services Limited,Communities,Planning & Growth,Development Control,1161,03/08/2018,Supplies & Services,87959,Communities
508.24,Mackay Plant Hire Limited,Communities,Community Development,Rushcliffe Country Park,1375,18/07/2018,Supplies & Services,87231,Communities
504.07,British Gas Business,Communities,Community Development,Gresham,8950,31/08/2018,Premises Related Expenditure,88787,Communities
504,East Midlands Markets And Events Ltd,Transformation,Property Services,Bingham Market Stalls,1880,14/09/2018,Supplies & Services,88850,Transformation
504,East Midlands Markets And Events Ltd,Transformation,Property Services,Bingham Market Stalls,1880,14/09/2018,Supplies & Services,88852,Transformation
500,Modern Mindset Ltd,Transformation,Ict,It Rechargeable Costs,4722,31/07/2018,Supplies & Services,88091,Transformation
480.25,Reach Publishing Services Limited,Communities,Planning & Growth,Development Control,1161,17/07/2018,Supplies & Services,87645,Communities
480.25,Reach Publishing Services Limited,Communities,Planning & Growth,Development Control,1161,14/09/2018,Supplies & Services,89398,Communities
461.12,Maltby & Company,Communities,Community Development,Gresham,8950,04/07/2018,Supplies & Services,86762,Communities
461.12,Maltby & Company,Communities,Community Development,Rushcliffe Country Park,1375,04/07/2018,Supplies & Services,86762,Communities
460,Access Doors,Communities,Community Development,West Park,8994,19/09/2018,Premises Related Expenditure,89402,Communities
457.32,Daisy Communications Ltd,Transformation,Ict,Telephones,4870,14/09/2018,Supplies & Services,89234,Transformation
450,Dta Electrical,Communities,Community Development,Lutterell Hall,8990,10/09/2018,Supplies & Services,88951,Communities
426.4,Traffic Management Svs Ltd,Communities,Community Development,Arts,1550,31/07/2018,Supplies & Services,87718,Communities
426.4,Traffic Management Svs Ltd,Communities,Community Development,Young,1048,31/07/2018,Supplies & Services,87718,Communities
415.75,Clearwater Technology Ltd,Transformation,Property Services,Arena Civic Centre,4718,19/09/2018,Premises Related Expenditure,88460,Transformation
347.5,Clearwater Technology Ltd,Communities,Community Development,Gresham,8950,19/09/2018,Premises Related Expenditure,88460,Communities
335,Access Doors,Communities,Community Development,Rushcliffe Country Park,1375,19/09/2018,Premises Related Expenditure,89402,Communities
316.41,Reach Publishing Services Limited,Communities,Planning & Growth,Conservation,1171,17/08/2018,Supplies & Services,88453,Communities
297.5,Lodge Tyre Co.Ltd,Neighbourhoods,Waste & Fleet Management,Glass Recycling & Bring Sites,8407,09/08/2018,Transport Related Expenditure,88402,Neighbourhoods
288.15,Reach Publishing Services Limited,Communities,Planning & Growth,Conservation,1171,17/07/2018,Supplies & Services,87645,Communities
288.15,Reach Publishing Services Limited,Communities,Planning & Growth,Conservation,1171,14/09/2018,Supplies & Services,89398,Communities
275,Dta Electrical,Communities,Community Development,Sir Julien Cahn Pavilion,8993,06/07/2018,Premises Related Expenditure,87063,Communities
260,Access Doors,Communities,Community Development,Gresham,8950,19/09/2018,Premises Related Expenditure,89402,Communities
237.5,Lodge Tyre Co.Ltd,Neighbourhoods,Waste & Fleet Management,Glass Recycling & Bring Sites,8407,11/07/2018,Transport Related Expenditure,87543,Neighbourhoods
225,Clearwater Technology Ltd,Neighbourhoods,Waste & Fleet Management,Depot,4001,19/09/2018,Premises Related Expenditure,88460,Neighbourhoods
213.75,Clearwater Technology Ltd,Communities,Community Development,Alford Road,8940,19/09/2018,Premises Related Expenditure,88460,Communities
213.75,Clearwater Technology Ltd,Neighbourhoods,Strategic Housing,Hostel Hound Lodge,1111,19/09/2018,Premises Related Expenditure,88460,Neighbourhoods
191.25,Clearwater Technology Ltd,Communities,Community Development,West Park,8994,19/09/2018,Premises Related Expenditure,88460,Communities
190.84,Reach Publishing Services Limited,Communities,Planning & Growth,Conservation,1171,31/07/2018,Supplies & Services,86831,Communities
185,A R Signs Ltd,Communities,Community Development,Bridgford Park,8927,06/07/2018,Premises Related Expenditure,87070,Communities
173.26,Reach Publishing Services Limited,Communities,Planning & Growth,Conservation,1171,09/08/2018,Supplies & Services,88273,Communities
153.12,Royal Mail Group Ltd,Assets,Current Assets,Parish Election,7100,04/07/2018,Supplies & Services,86926,Assets
146.75,Clearwater Technology Ltd,Communities,Community Development,Lutterell Hall,8990,19/09/2018,Premises Related Expenditure,88460,Communities
140,Maltby & Company,Communities,Community Development,Bridgford Park,8927,26/07/2018,Premises Related Expenditure,87704,Communities
135,Access Doors,Communities,Community Development,Alford Road,8940,19/09/2018,Premises Related Expenditure,89402,Communities
135,Clearwater Technology Ltd,Communities,Community Development,Rushcliffe Country Park,1375,19/09/2018,Premises Related Expenditure,88460,Communities
123.75,Clearwater Technology Ltd,Communities,Community Development,Sir Julien Cahn Pavilion,8993,19/09/2018,Premises Related Expenditure,88460,Communities
112.5,Clearwater Technology Ltd,Communities,Community Development,Gamston Community Hall,8992,19/09/2018,Premises Related Expenditure,88460,Communities
110,Access Doors,Communities,Community Development,Lutterell Hall,8990,19/09/2018,Premises Related Expenditure,89402,Communities
109.23,Reach Publishing Services Limited,Communities,Planning & Growth,Conservation,1171,09/07/2018,Supplies & Services,87213,Communities
101.7,Reach Publishing Services Limited,Communities,Planning & Growth,Conservation,1171,03/08/2018,Supplies & Services,87959,Communities
93.63,Reach Publishing Services Limited,Communities,Planning & Growth,Conservation,1171,31/08/2018,Supplies & Services,89029,Communities
92.5,A R Signs Ltd,Communities,Community Development,Alford Road,8940,06/07/2018,Premises Related Expenditure,87070,Communities
92.5,A R Signs Ltd,Communities,Community Development,Gresham,8950,06/07/2018,Premises Related Expenditure,87070,Communities
92.5,A R Signs Ltd,Communities,Community Development,Parks & Playing Fields-Gen,8910,06/07/2018,Premises Related Expenditure,87070,Communities
92.5,A R Signs Ltd,Communities,Community Development,Rushcliffe Country Park,1375,06/07/2018,Premises Related Expenditure,87070,Communities
92.5,A R Signs Ltd,Communities,Community Development,West Park,8994,06/07/2018,Premises Related Expenditure,87070,Communities
92.5,A R Signs Ltd,Transformation,Property Services,Open Spaces & Footpaths,1290,06/07/2018,Premises Related Expenditure,87070,Transformation
90,Dta Electrical,Communities,Community Development,Alford Road,8940,06/07/2018,Premises Related Expenditure,87063,Communities
90,Dta Electrical,Communities,Community Development,Gresham,8950,06/07/2018,Premises Related Expenditure,87063,Communities
90,Dta Electrical,Communities,Community Development,Lutterell Hall,8990,06/07/2018,Premises Related Expenditure,87063,Communities
90,Dta Electrical,Communities,Community Development,West Park,8994,06/07/2018,Premises Related Expenditure,87063,Communities
85,Access Doors,Communities,Community Development,Sir Julien Cahn Pavilion,8993,19/09/2018,Premises Related Expenditure,89402,Communities
79.1,Reach Publishing Services Limited,Communities,Planning & Growth,Conservation,1171,17/08/2018,Supplies & Services,88671,Communities
70,Lodge Tyre Co.Ltd,Neighbourhoods,Waste & Fleet Management,Depot,4001,09/08/2018,Transport Related Expenditure,88402,Neighbourhoods
70,Maltby & Company,Communities,Community Development,Alford Road,8940,26/07/2018,Premises Related Expenditure,87704,Communities
70,Maltby & Company,Communities,Community Development,Gresham,8950,26/07/2018,Premises Related Expenditure,87704,Communities
70,Maltby & Company,Communities,Community Development,Parks & Playing Fields-Gen,8910,26/07/2018,Premises Related Expenditure,87704,Communities
70,Maltby & Company,Communities,Community Development,Rushcliffe Country Park,1375,26/07/2018,Premises Related Expenditure,87704,Communities
70,Maltby & Company,Communities,Community Development,West Park,8994,26/07/2018,Premises Related Expenditure,87704,Communities
70,Maltby & Company,Transformation,Property Services,Open Spaces & Footpaths,1290,26/07/2018,Premises Related Expenditure,87704,Transformation
68.14,Daisy Communications Ltd,Transformation,Ict,Telephones,4870,18/07/2018,Supplies & Services,87462,Transformation
60,Access Doors,Communities,Community Development,Gamston Community Hall,8992,19/09/2018,Premises Related Expenditure,89402,Communities
60,Access Doors,Transformation,Property Services,The Point,1886,19/09/2018,Premises Related Expenditure,89402,Transformation
44.88,Daisy Communications Ltd,Transformation,Ict,Telephones,4870,14/09/2018,Supplies & Services,89234,Transformation
20820406.8,,,,,,,,,
